[Event "IV Copa Marcel Duchamp 2020"]
[Site "Montevideo"]
[Date "2020.02.15"]
[Round "9.14"]
[White "Suarez, Pedro"]
[Black "Larrea, Manuel"]
[Result "0-1"]
[ECO "E97"]
[WhiteElo "2063"]
[BlackElo "2243"]
[Annotator "ChessBase"]
[PlyCount "70"]
[EventDate "2020.02.08"]
[EventType "swiss"]
[EventCountry "URU"]
[SourceTitle "playchess.com"]
[Source "ChessBase"]
[SourceQuality "1"]
[TimeControl "5400+30"]

1. d4 {[%emt 0:00:00]} Nf6 {[%emt 0:00:00]} 2. c4 {[%emt 0:00:00]} g6 {[%emt 0:00:00]} 3. Nc3 {[%emt 0:00:00]} Bg7 {[%emt 0:00:02]} 4. e4 {[%emt 0:01:11]} d6 {[%emt 0:00:09]} 5. Be2 {[%emt 0:01:01]} O-O {[%emt 0:00:26]} 6. Nf3 {[%emt 0:01:00]} e5 {[%emt 0:01:00]} 7. O-O {[%emt 0:01:30]} Nc6 {[%emt 0:01:03]} 8. d5 {[%emt 0:03:34]} Ne7 {[%emt 0:00:37]} 9. b4 {[%emt 0:01:51]} c6 {[%emt 0:00:30]} 10. Ba3 {[%emt 0:15:03]} cxd5 {[%emt 0:07:37]} 11. cxd5 {[%emt 0:04:18]} Ne8 {[%emt 0:00:31]} 12. Nd2 {[%emt 0:07:45]} f5 {[%emt 0:00:22]} 13. Nc4 {[%emt 0:01:04]} fxe4 {[%emt 0:14:59]} 14. b5 {[%emt 0:09:35]} Bf5 {[%emt 0:09:28]} 15. b6 {[%emt 0:04:47]} axb6 {[%emt 0:06:28]} 16. Nb5 {[%emt 0:03:39]} Nc8 {[%emt 0:06:06]} 17. Qb3 {[%emt 0:03:34]} Rf6 {[%emt 0:03:48]} 18. Rad1 {[%emt 0:05:28]} Kh8 {[%emt 0:12:29]} 19. Bc1 {[%emt 0:11:33]} Rf7 {[%emt 0:01:13]} 20. Be3 {[%emt 0:00:50]} Nf6 {[%emt 0:01:45]} 21. Nc3 {[%emt 0:01:51]} Nd7 {[%emt 0:01:50]} 22. g4 {[%emt 0:06:15]} Qh4 {[%emt 0:02:47]} 23. gxf5 {[%emt 0:00:40]} gxf5 {[%emt 0:02:07]} 24. f4 {[%emt 0:01:50]} Bh6 {[%emt 0:03:54]} 25. Bf2 {[%emt 0:00:22]} Rg7+ {[%emt 0:04:43]} 26. Bg3 {[%emt 0:03:37]} Rxg3+ {[%emt 0:06:36]} 27. hxg3 {[%emt 0:00:05]} Qxg3+ {[%emt 0:00:07]} 28. Kh1 {[%emt 0:00:03]} Ne7 {[%emt 0:00:21]} 29. Nxe4 {[%emt 0:00:56]} Qh4+ {[%emt 0:01:12]} 30. Kg2 {[%emt 0:00:05]} fxe4 {[%emt 0:01:13]} 31. Qh3 {[%emt 0:01:14]} Rg8+ {[%emt 0:00:19]} 32. Kh2 {[%emt 0:00:06]} Bxf4+ {[%emt 0:00:12]} 33. Rxf4 {[%emt 0:00:04]} Qxf4+ {[%emt 0:00:07]} 34. Kh1 {[%emt 0:00:03]} Nf5 {[%emt 0:01:34]} 35. Rg1 {[%emt 0:01:32]} Ng3+ {[%emt 0:00:22]} 0-1

[Event "IV Copa Marcel Duchamp 2020"]
[Site "Montevideo"]
[Date "2020.02.15"]
[Round "9.15"]
[White "Meskanen, Vesa"]
[Black "Carbone, Diego"]
[Result "1/2-1/2"]
[ECO "D85"]
[WhiteElo "2019"]
[BlackElo "2239"]
[Annotator "ChessBase"]
[PlyCount "72"]
[EventDate "2020.02.08"]
[EventType "swiss"]
[EventCountry "URU"]
[SourceTitle "playchess.com"]
[Source "ChessBase"]
[SourceQuality "1"]
[TimeControl "5400+30"]

1. d4 {[%emt 0:00:00]} Nf6 2. Nf3 {[%emt 0:01:28]} g6 {[%emt 0:06:24]} 3. c4 {[%emt 0:00:08]} Bg7 {[%emt 0:00:10]} 4. Nc3 {[%emt 0:00:07]} d5 {[%emt 0:00:31]} 5. cxd5 {[%emt 0:00:12]} Nxd5 {[%emt 0:00:07]} 6. e4 {[%emt 0:00:07]} Nxc3 {[%emt 0:00:06]} 7. bxc3 {[%emt 0:00:05]} c5 {[%emt 0:00:07]} 8. Be2 {[%emt 0:03:02]} Nc6 {[%emt 0:07:06]} 9. Be3 {[%emt 0:02:44]} Qa5 {[%emt 0:00:39]} 10. O-O {[%emt 0:00:39]} Qxc3 {[%emt 0:09:59]} 11. Rc1 {[%emt 0:00:18]} Qa3 {[%emt 0:00:04]} 12. Rxc5 {[%emt 0:00:13]} O-O {[%emt 0:00:53]} 13. Qd2 Rd8 {[%emt 0:09:36]} 14. Rfc1 {[%emt 0:21:41]} Bg4 {[%emt 0:09:04]} 15. R1c3 {[%emt 0:07:33]} Qb4 {[%emt 0:02:00]} 16. Rb5 {[%emt 0:04:45]} Qd6 {[%emt 0:01:41]} 17. Rxb7 {[%emt 0:16:43]} Bxf3 {[%emt 0:03:28]} 18. Bxf3 {[%emt 0:01:09]} Nxd4 {[%emt 0:00:27]} 19. Bxd4 {[%emt 0:04:00]} Bxd4 {[%emt 0:00:07]} 20. Rcc7 {[%emt 0:01:40]} Rac8 {[%emt 0:02:34]} 21. Qc2 {[%emt 0:06:38]} Bc5 {[%emt 0:03:09]} 22. Rxc8 {[%emt 0:06:18]} Rxc8 {[%emt 0:00:15]} 23. Rb1 {[%emt 0:00:27]} Rd8 {[%emt 0:06:09]} 24. Rd1 {[%emt 0:01:15]} Bd4 {[%emt 0:00:04]} 25. g3 {[%emt 0:00:18]} h5 {[%emt 0:01:31]} 26. Kg2 {[%emt 0:05:36]} h4 {[%emt 0:08:20]} 27. Qe2 {[%emt 0:01:20]} e5 {[%emt 0:02:02]} 28. Bg4 {[%emt 0:02:11]} Rb8 {[%emt 0:01:46]} 29. Rd2 {[%emt 0:01:23]} Qe7 {[%emt 0:01:17]} 30. Rc2 {[%emt 0:04:04]} Kg7 {[%emt 0:00:29]} 31. Qf3 {[%emt 0:01:51]} Rb1 {[%emt 0:00:54]} 32. Kh3 {[%emt 0:00:32]} Rb6 {[%emt 0:03:35]} 33. gxh4 {[%emt 0:02:09]} Rf6 {[%emt 0:00:12]} 34. Qg3 {[%emt 0:00:08]} Rf4 {[%emt 0:00:57]} 35. h5 {[%emt 0:01:35]} Qf6 {[%emt 0:04:31]} 36. f3 {[%emt 0:00:22]} g5 {[%emt 0:06:20]} 1/2-1/2

[Event "IV Copa Marcel Duchamp 2020"]
[Site "Montevideo"]
[Date "2020.02.15"]
[Round "9.16"]
[White "Shtemler, Lavi"]
[Black "Pichuaga, Juan Pablo"]
[Result "1/2-1/2"]
[ECO "B01"]
[WhiteElo "2199"]
[BlackElo "2030"]
[Annotator "ChessBase"]
[PlyCount "97"]
[EventDate "2020.02.08"]
[EventType "swiss"]
[EventCountry "URU"]
[SourceTitle "playchess.com"]
[Source "ChessBase"]
[SourceQuality "1"]
[TimeControl "5400+30"]

1. e4 {[%emt 0:07:30]} d5 {[%emt 0:01:30]} 2. exd5 {[%emt 0:00:06]} Qxd5 {[%emt 0:00:05]} 3. Nc3 {[%emt 0:00:07]} Qa5 {[%emt 0:02:21]} 4. d4 {[%emt 0:00:15]} c6 {[%emt 0:00:15]} 5. Nf3 {[%emt 0:00:07]} Nf6 {[%emt 0:00:27]} 6. Bc4 {[%emt 0:00:09]} Bg4 {[%emt 0:01:02]} 7. O-O {[%emt 0:00:30]} e6 {[%emt 0:00:15]} 8. h3 {[%emt 0:01:45]} Bh5 {[%emt 0:00:26]} 9. Bd2 {[%emt 0:02:37]} Qd8 {[%emt 0:03:28]} 10. g4 {[%emt 0:01:34]} Bg6 {[%emt 0:00:22]} 11. Qe2 {[%emt 0:01:56]} Be7 {[%emt 0:02:57]} 12. Bg5 {[%emt 0:09:35]} Nd5 {[%emt 0:11:19]} 13. Nxd5 {[%emt 0:18:34]} Bxg5 {[%emt 0:03:14]} 14. Nxg5 {[%emt 0:00:47]} cxd5 {[%emt 0:01:36]} 15. Nxe6 {[%emt 0:08:03]} fxe6 {[%emt 0:00:45]} 16. Qxe6+ {[%emt 0:00:02]} Kf8 {[%emt 0:04:26]} 17. Bxd5 {[%emt 0:00:24]} Nc6 {[%emt 0:00:26]} 18. Rae1 {[%emt 0:05:55]} Qf6 {[%emt 0:02:43]} 19. Bxc6 {[%emt 0:02:38]} bxc6 {[%emt 0:02:49]} 20. Qxf6+ {[%emt 0:03:53]} gxf6 {[%emt 0:00:09]} 21. Re6 {[%emt 0:00:03]} Rc8 {[%emt 0:01:02]} 22. Rxf6+ {[%emt 0:05:30]} Ke7 {[%emt 0:01:48]} 23. g5 {[%emt 0:01:42]} Rhf8 {[%emt 0:03:28]} 24. Re1+ {[%emt 0:03:39]} Kd7 {[%emt 0:00:19]} 25. Ree6 {[%emt 0:15:02]} Rxf6 {[%emt 0:02:29]} 26. Rxf6 {[%emt 0:00:01]} Bxc2 {[%emt 0:00:45]} 27. f4 {[%emt 0:00:39]} Rb8 {[%emt 0:01:45]} 28. b3 {[%emt 0:00:42]} Rb4 {[%emt 0:00:47]} 29. h4 {[%emt 0:04:46]} Rxd4 {[%emt 0:02:44]} 30. h5 {[%emt 0:00:16]} Bb1 {[%emt 0:03:37]} 31. Kf2 {[%emt 0:01:26]} Rd5 {[%emt 0:11:05]} 32. Rf7+ {[%emt 0:00:47]} Ke6 {[%emt 0:01:59]} 33. Rf6+ {[%emt 0:00:14]} Kd7 {[%emt 0:05:00]} 34. Ke3 {[%emt 0:02:13]} Bf5 {[%emt 0:01:18]} 35. Rf7+ {[%emt 0:00:29]} Ke6 {[%emt 0:04:12]} 36. Rxa7 {[%emt 0:00:01]} Rd3+ {[%emt 0:00:59]} 37. Ke2 {[%emt 0:00:11]} Rh3 {[%emt 0:00:44]} 38. h6 {[%emt 0:00:52]} Rh4 {[%emt 0:01:21]} 39. Ke3 {[%emt 0:00:50]} Rh3+ {[%emt 0:05:56]} 40. Ke2 {[%emt 0:00:11]} Kd5 {[%emt 0:03:23]} 41. Re7 {[%emt 0:00:39]} Kd4 {[%emt 0:00:58]} 42. Kf2 {[%emt 0:01:07]} Be4 {[%emt 0:01:08]} 43. Rd7+ {[%emt 0:00:54]} Kc5 {[%emt 0:01:06]} 44. Re7 {[%emt 0:00:29]} Kd5 {[%emt 0:00:21]} 45. Ke2 {[%emt 0:01:43]} Rh2+ {[%emt 0:05:01]} 46. Ke3 {[%emt 0:00:25]} Rh3+ {[%emt 0:00:47]} 47. Ke2 {[%emt 0:00:10]} Rh2+ {[%emt 0:01:31]} 48. Ke3 {[%emt 0:00:11]} Rh3+ {[%emt 0:00:18]} 49. Ke2 {[%emt 0:00:33]} 1/2-1/2

[Event "IV Copa Marcel Duchamp 2020"]
[Site "Montevideo"]
[Date "2020.02.15"]
[Round "9.17"]
[White "El Ters, Antouan"]
[Black "Montanu, Dan-Vladimir"]
[Result "1-0"]
[ECO "C52"]
[WhiteElo "2189"]
[BlackElo "1983"]
[Annotator "NA"]
[PlyCount "105"]
[EventDate "2020.02.08"]
[EventType "swiss"]
[EventCountry "URU"]
[SourceTitle "playchess.com"]
[Source "ChessBase"]
[SourceQuality "1"]
[TimeControl "5400+30"]

1. e4 {[%emt 0:00:00]} e5 {[%emt 0:08:24]} 2. Nf3 {[%emt 0:00:00]} Nc6 {[%emt 0:00:10]} 3. Bc4 {[%emt 0:00:00]} Bc5 {[%emt 0:01:10]} 4. b4 {[%emt 0:00:45]} Bxb4 {[%emt 0:02:36]} 5. c3 {[%emt 0:00:07]} Ba5 {[%emt 0:03:22]} 6. d4 {[%emt 0:00:15]} exd4 {[%emt 0:00:15]} 7. O-O {[%emt 0:00:42]} Nge7 {[%emt 0:07:42]} 8. cxd4 {[%emt 0:05:10]} d5 {[%emt 0:01:40]} 9. exd5 {[%emt 0:00:10]} Nxd5 {[%emt 0:00:24]} 10. Qb3 {[%emt 0:08:24]} Nce7 {[%emt 0:03:54]} 11. Ba3 $1 {[%emt 0:02:30]} c6 {[%emt 0:04:46]} 12. Nbd2 $11 {[%emt 0:01:34]} (12. Bxd5 $14 Qxd5 13. Qe3) 12... Bxd2 {[%emt 0:08:49]} 13. Nxd2 {[%emt 0:01:02]} b5 {[%emt 0:08:46]} 14. Bxd5 Nxd5 {[%emt 0:00:50]} 15. Rfe1+ {[%emt 0:05:36]} Be6 {[%emt 0:06:03]} 16. Bc5 {[%emt 0:02:57]} Ne7 {[%emt 0:00:30]} 17. Rxe6 {[%emt 0:01:44]} fxe6 {[%emt 0:01:08]} 18. Qxe6 Qd7 19. Re1 {[%emt 0:00:24]} O-O-O {[%emt 0:02:33]} 20. Qxe7 {[%emt 0:02:52]} Rhe8 {[%emt 0:03:01]} 21. Qxd7+ {[%emt 0:00:37]} Kxd7 {[%emt 0:00:09]} 22. Ne4 a5 {[%emt 0:10:35]} 23. f3 {[%emt 0:05:23]} Kc7 24. Rc1 {[%emt 0:01:34]} b4 {[%emt 0:02:42]} 25. Kf2 Rd5 {[%emt 0:00:46]} 26. Ke3 {[%emt 0:03:10]} Re6 {[%emt 0:05:18]} 27. Kd3 {[%emt 0:01:42]} Rf5 {[%emt 0:01:23]} 28. Rc2 {[%emt 0:00:52]} g5 {[%emt 0:00:31]} 29. h3 {[%emt 0:01:16]} h6 {[%emt 0:04:24]} 30. Rb2 {[%emt 0:01:15]} Rd5 {[%emt 0:03:01]} 31. a3 {[%emt 0:01:09]} bxa3 {[%emt 0:00:27]} 32. Rb3 {[%emt 0:02:00]} a2 {[%emt 0:03:22]} 33. Ra3 {[%emt 0:00:23]} Rd8 {[%emt 0:02:01]} 34. Rxa5 {[%emt 0:00:19]} Rb8 {[%emt 0:00:40]} 35. Rxa2 {[%emt 0:00:00]} Rb1 {[%emt 0:00:54]} 36. Ra7+ {[%emt 0:00:58]} Kb8 {[%emt 0:00:37]} 37. Rf7 {[%emt 0:02:50]} Re1 {[%emt 0:01:39]} 38. Bd6+ {[%emt 0:02:03]} Ka8 {[%emt 0:00:37]} 39. Be5 {[%emt 0:00:32]} Rd1+ {[%emt 0:00:23]} 40. Ke2 {[%emt 0:02:03]} Rc1 {[%emt 0:00:07]} 41. Kd2 {[%emt 0:01:27]} Rg1 {[%emt 0:00:08]} 42. g3 {[%emt 0:00:49]} Rg2+ {[%emt 0:00:41]} 43. Kc3 {[%emt 0:00:20]} Rg1 {[%emt 0:00:53]} 44. Nc5 {[%emt 0:00:39]} Rc1+ {[%emt 0:00:46]} 45. Kb4 {[%emt 0:00:33]} Rb1+ {[%emt 0:00:03]} 46. Ka5 {[%emt 0:05:22]} Re8 {[%emt 0:02:27]} 47. Ka6 {[%emt 0:00:50]} Ra1+ {[%emt 0:00:34]} 48. Kb6 {[%emt 0:00:55]} Rb1+ {[%emt 0:00:02]} 49. Kxc6 {[%emt 0:00:34]} Rd8 {[%emt 0:01:38]} 50. g4 {[%emt 0:05:11]} Rb2 {[%emt 0:00:36]} 51. Na4 {[%emt 0:00:22]} Rc2+ {[%emt 0:00:59]} 52. Kb6 {[%emt 0:00:39]} Rc1 {[%emt 0:00:42]} 53. Ra7# {[%emt 0:00:16]} 1-0

[Event "IV Copa Marcel Duchamp 2020"]
[Site "Montevideo"]
[Date "2020.02.15"]
[Round "9.18"]
[White "Carvalho, Guillermo"]
[Black "Rodriguez Farias, Eduardo"]
[Result "1-0"]
[ECO "A46"]
[WhiteElo "2187"]
[BlackElo "1963"]
[Annotator "NA"]
[PlyCount "71"]
[EventDate "2020.02.08"]
[EventType "swiss"]
[EventCountry "URU"]
[SourceTitle "playchess.com"]
[Source "ChessBase"]
[SourceQuality "1"]
[TimeControl "5400+30"]

1. d4 {[%emt 0:00:00]} Nf6 {[%emt 0:00:32]} 2. Nf3 {[%emt 0:01:51]} d6 {[%emt 0:02:00]} 3. Nc3 {[%emt 0:01:20]} Nbd7 {[%emt 0:01:55]} 4. e4 {[%emt 0:00:16]} e5 {[%emt 0:00:14]} 5. Be2 {[%emt 0:01:54]} Be7 {[%emt 0:00:21]} 6. O-O {[%emt 0:00:10]} O-O {[%emt 0:00:23]} 7. h3 {[%emt 0:00:53]} c6 {[%emt 0:02:24]} 8. Re1 {[%emt 0:02:13]} Re8 {[%emt 0:03:42]} 9. Bf1 {[%emt 0:03:25]} Qc7 {[%emt 0:06:08]} 10. g3 {[%emt 0:02:35]} Bf8 {[%emt 0:06:24]} 11. Bg2 {[%emt 0:01:07]} g6 {[%emt 0:07:28]} 12. Bg5 {[%emt 0:02:03]} h6 {[%emt 0:01:21]} 13. Be3 {[%emt 0:00:19]} Bg7 {[%emt 0:00:14]} 14. Qd2 {[%emt 0:02:22]} Kh7 {[%emt 0:00:08]} 15. Rad1 {[%emt 0:00:14]} Rb8 {[%emt 0:09:19]} 16. dxe5 {[%emt 0:00:52]} dxe5 $14 {[%emt 0:06:57]} 17. Bxa7 {[%emt 0:01:00]} Ra8 {[%emt 0:00:09]} 18. Be3 {[%emt 0:00:06]} Qa5 {[%emt 0:01:36]} 19. Qc1 {[%emt 0:01:52]} Nc5 {[%emt 0:02:32]} 20. Nd2 {[%emt 0:00:39]} Be6 {[%emt 0:01:12]} 21. a3 {[%emt 0:02:42]} Na4 {[%emt 0:02:23]} 22. Nxa4 {[%emt 0:03:56]} Qxa4 {[%emt 0:01:51]} 23. Nb1 {[%emt 0:00:13]} Bf8 {[%emt 0:07:03]} 24. b3 {[%emt 0:07:48]} Qa5 {[%emt 0:02:28]} 25. Qb2 {[%emt 0:06:26]} Rad8 {[%emt 0:04:41]} 26. Bd2 {[%emt 0:02:57]} Qc7 {[%emt 0:03:28]} 27. Be3 {[%emt 0:04:37]} Bg7 {[%emt 0:04:28]} 28. Nc3 {[%emt 0:02:52]} Ng8 {[%emt 0:01:19]} 29. Na4 {[%emt 0:01:00]} Rxd1 {[%emt 0:01:38]} 30. Rxd1 {[%emt 0:00:06]} Ne7 {[%emt 0:00:09]} 31. Bb6 {[%emt 0:03:44]} Qc8 {[%emt 0:00:21]} 32. Kh2 {[%emt 0:00:12]} f5 {[%emt 0:01:20]} 33. Nc5 {[%emt 0:00:49]} f4 {[%emt 0:01:12]} 34. Rd6 {[%emt 0:02:23]} Ng8 {[%emt 0:01:56]} 35. Nxe6 {[%emt 0:00:42]} Rxe6 {[%emt 0:00:03]} 36. Rd8 {[%emt 0:00:13]} 1-0

[Event "IV Copa Marcel Duchamp 2020"]
[Site "Montevideo"]
[Date "2020.02.15"]
[Round "9.19"]
[White "Dotta, Gian Franco"]
[Black "Benoit, Rodrigo"]
[Result "0-1"]
[ECO "B06"]
[WhiteElo "2000"]
[BlackElo "2170"]
[Annotator "ChessBase"]
[PlyCount "84"]
[EventDate "2020.02.08"]
[EventType "swiss"]
[EventCountry "URU"]
[SourceTitle "playchess.com"]
[Source "ChessBase"]
[SourceQuality "1"]
[TimeControl "5400+30"]

1. e4 {[%emt 0:05:47]} g6 {[%emt 0:09:29]} 2. d4 {[%emt 0:00:08]} Bg7 {[%emt 0:00:17]} 3. Nc3 {[%emt 0:01:30]} d6 {[%emt 0:00:14]} 4. f4 {[%emt 0:00:11]} c6 {[%emt 0:00:31]} 5. Nf3 {[%emt 0:00:09]} Bg4 {[%emt 0:00:12]} 6. Be3 {[%emt 0:00:20]} e6 {[%emt 0:00:30]} 7. h3 {[%emt 0:01:36]} Bxf3 {[%emt 0:00:09]} 8. Qxf3 {[%emt 0:00:06]} Ne7 {[%emt 0:01:02]} 9. Bd3 {[%emt 0:01:46]} f5 {[%emt 0:00:41]} 10. d5 {[%emt 0:04:03]} fxe4 {[%emt 0:01:10]} 11. Nxe4 {[%emt 0:08:19]} exd5 {[%emt 0:02:49]} 12. Ng5 {[%emt 0:05:43]} Qd7 {[%emt 0:00:13]} 13. f5 {[%emt 0:14:15]} Nxf5 {[%emt 0:01:59]} 14. Bxf5 {[%emt 0:01:13]} Qxf5 {[%emt 0:00:03]} 15. O-O {[%emt 0:10:20]} Qxf3 {[%emt 0:07:05]} 16. Rxf3 {[%emt 0:00:14]} Be5 {[%emt 0:00:16]} 17. Raf1 {[%emt 0:02:31]} Na6 {[%emt 0:00:35]} 18. Ne6 {[%emt 0:05:09]} Ke7 {[%emt 0:01:32]} 19. Ng7 {[%emt 0:06:10]} Bxg7 {[%emt 0:00:56]} 20. Rf7+ {[%emt 0:00:09]} Ke6 {[%emt 0:00:23]} 21. Rxg7 {[%emt 0:00:15]} Raf8 {[%emt 0:00:35]} 22. Re1 {[%emt 0:02:33]} Rf5 {[%emt 0:00:18]} 23. Bg5+ {[%emt 0:00:24]} Re5 {[%emt 0:00:09]} 24. Rxe5+ {[%emt 0:02:50]} dxe5 {[%emt 0:00:12]} 25. Rxb7 {[%emt 0:00:30]} d4 {[%emt 0:01:54]} 26. Rxa7 {[%emt 0:04:16]} Nb4 27. c3 {[%emt 0:00:47]} Nd3 {[%emt 0:00:36]} 28. cxd4 {[%emt 0:03:12]} exd4 {[%emt 0:00:02]} 29. Re7+ {[%emt 0:01:03]} Kd6 {[%emt 0:00:59]} 30. Re4 {[%emt 0:02:41]} c5 {[%emt 0:02:10]} 31. Bf6 {[%emt 0:02:51]} Ra8 {[%emt 0:00:43]} 32. Rh4 {[%emt 0:02:17]} Nxb2 {[%emt 0:04:16]} 33. Kh2 {[%emt 0:03:57]} d3 {[%emt 0:03:08]} 34. Bc3 {[%emt 0:02:27]} Rxa2 {[%emt 0:00:40]} 35. Rxh7 {[%emt 0:00:43]} Na4 {[%emt 0:00:46]} 36. Ba5 {[%emt 0:01:04]} Nb6 {[%emt 0:03:32]} 37. Bxb6 {[%emt 0:03:58]} d2 {[%emt 0:00:10]} 38. Rh8 {[%emt 0:01:32]} Kc6 {[%emt 0:00:05]} 39. Rd8 {[%emt 0:00:50]} Kxb6 {[%emt 0:00:10]} 40. Kg3 {[%emt 0:00:10]} c4 {[%emt 0:00:10]} 41. Kf3 {[%emt 0:00:16]} c3 {[%emt 0:00:24]} 42. Ke2 {[%emt 0:01:51]} Ra1 {[%emt 0:00:17]} 0-1

[Event "IV Copa Marcel Duchamp 2020"]
[Site "Montevideo"]
[Date "2020.02.15"]
[Round "9.20"]
[White "Durante, Aurelio"]
[Black "Dominguez, Facundo"]
[Result "1/2-1/2"]
[ECO "B40"]
[WhiteElo "1955"]
[BlackElo "2135"]
[Annotator "NA"]
[PlyCount "89"]
[EventDate "2020.02.08"]
[EventType "swiss"]
[EventCountry "URU"]
[SourceTitle "playchess.com"]
[Source "ChessBase"]
[SourceQuality "1"]
[TimeControl "5400+30"]

1. e4 {[%emt 0:00:00]} c5 {[%emt 0:00:57]} 2. Nf3 {[%emt 0:00:00]} e6 {[%emt 0:00:19]} 3. c3 {[%emt 0:00:00]} Nc6 {[%emt 0:00:27]} 4. d4 {[%emt 0:07:49]} cxd4 {[%emt 0:01:02]} 5. cxd4 {[%emt 0:00:02]} d5 {[%emt 0:00:08]} 6. exd5 {[%emt 0:01:13]} exd5 {[%emt 0:03:59]} 7. Nc3 {[%emt 0:01:10]} Nf6 {[%emt 0:01:04]} 8. a3 {[%emt 0:00:21]} Be7 {[%emt 0:01:15]} 9. Be2 {[%emt 0:00:38] D40: Queen's Gambit Declined: Semi-Tarrasch with 5 e3.} O-O {[%emt 0:00:21]} 10. O-O {[%emt 0:00:03]} Bf5 {[%emt 0:02:44] [#]} 11. Bf4 $146 {[%emt 0:01:45]} ({Predecessor:} 11. Be3 Rc8 12. Rc1 Ne4 13. Nxe4 dxe4 14. Ne5 Nxe5 15. dxe5 Rxc1 16. Qxc1 Qa5 17. Bd4 {½-½ (36) Rott,G (2221)-Schiefelbusch,D (2135) Dortmund 2010}) 11... Rc8 {[%emt 0:02:54]} 12. Rc1 {[%emt 0:00:04]} Ne4 {[%emt 0:03:54]} 13. Qb3 {[%emt 0:08:49]} Na5 {[%emt 0:00:55]} 14. Qa2 {[%emt 0:01:46]} Be6 {[%emt 0:04:57]} 15. Bd3 {[%emt 0:01:30]} Nxc3 {[%emt 0:06:47]} 16. Rxc3 {[%emt 0:01:45]} Rxc3 {[%emt 0:00:09]} 17. bxc3 {[%emt 0:00:02]} Qc8 {[%emt 0:00:19]} 18. Rc1 {[%emt 0:01:37]} Rd8 {[%emt 0:10:52]} 19. Bg5 $15 {[%emt 0:08:45]} Bxg5 {[%emt 0:06:00]} 20. Nxg5 {[%emt 0:00:03]} h6 {[%emt 0:00:08]} 21. Nf3 {[%emt 0:00:16]} Rd7 {[%emt 0:04:28]} 22. Bb1 {[%emt 0:01:56]} Nc4 {[%emt 0:02:56]} 23. h4 {[%emt 0:06:56]} Rc7 {[%emt 0:03:56]} 24. Qc2 {[%emt 0:09:13]} g6 {[%emt 0:00:45]} 25. Qa2 {[%emt 0:04:21]} Bf5 {[%emt 0:06:44]} 26. a4 {[%emt 0:09:47]} Re7 {[%emt 0:05:43]} 27. Re1 {[%emt 0:05:24]} Rxe1+ {[%emt 0:00:49]} 28. Nxe1 {[%emt 0:02:05]} Bxb1 {[%emt 0:07:32]} 29. Qxb1 {[%emt 0:00:02]} Qe8 {[%emt 0:03:20]} 30. Nf3 {[%emt 0:01:28]} b6 {[%emt 0:04:13]} 31. Qc1 {[%emt 0:01:45]} Kg7 {[%emt 0:01:37]} 32. Qf4 {[%emt 0:01:38]} Qe7 {[%emt 0:07:00]} 33. g4 {[%emt 0:07:34]} Nd6 {[%emt 0:04:29]} 34. h5 {[%emt 0:07:39]} Ne4 {[%emt 0:02:29]} 35. hxg6 {[%emt 0:01:04]} fxg6 {[%emt 0:00:11]} 36. Ne5 {[%emt 0:00:50]} Nxc3 {[%emt 0:01:08]} 37. Qf3 {[%emt 0:00:26]} Ne4 {[%emt 0:00:16]} 38. Kg2 {[%emt 0:01:54]} Qf6 {[%emt 0:00:59]} 39. Qe3 {[%emt 0:01:44]} Ng5 {[%emt 0:00:52]} 40. Qb3 {[%emt 0:01:43]} Ne6 {[%emt 0:00:09]} 41. Kg1 {[%emt 0:01:12]} Nf4 {[%emt 0:00:39]} 42. Qc2 {[%emt 0:00:24]} Ne6 {[%emt 0:00:54]} 43. Qd3 {[%emt 0:03:37]} Nf4 {[%emt 0:00:34]} 44. Qc2 {[%emt 0:00:07]} Ne6 {[%emt 0:00:21]} 45. Qc6 1/2-1/2

[Event "IV Copa Marcel Duchamp 2020"]
[Site "Montevideo"]
[Date "2020.02.15"]
[Round "9.21"]
[White "Aguilar Samper, Valentin"]
[Black "Curi, Gabriel"]
[Result "1/2-1/2"]
[ECO "A20"]
[WhiteElo "1946"]
[BlackElo "2132"]
[Annotator "NA"]
[PlyCount "92"]
[EventDate "2020.02.08"]
[EventType "swiss"]
[EventCountry "URU"]
[SourceTitle "playchess.com"]
[Source "ChessBase"]
[SourceQuality "1"]
[TimeControl "5400+30"]

1. c4 {[%emt 0:00:00]} e5 {[%emt 0:02:03]} 2. g3 {[%emt 0:00:00]} Nc6 {[%emt 0:00:33]} 3. Bg2 {[%emt 0:00:00]} f5 {[%emt 0:00:30]} 4. Nc3 {[%emt 0:00:00]} Nf6 {[%emt 0:00:08]} 5. e3 {[%emt 0:00:08]} g6 {[%emt 0:01:11]} 6. Nge2 {[%emt 0:00:09]} Bg7 {[%emt 0:00:06]} 7. O-O {[%emt 0:00:46]} O-O {[%emt 0:00:58]} 8. Rb1 {[%emt 0:02:10]} Ne7 {[%emt 0:09:39]} 9. d4 {[%emt 0:18:49]} d6 {[%emt 0:05:44]} 10. Nd5 {[%emt 0:13:14]} (10. b3 $14) 10... c6 $14 {[%emt 0:05:13]} (10... Nexd5 $15 11. cxd5 b6) 11. Nxf6+ {[%emt 0:00:12]} Bxf6 {[%emt 0:00:07]} 12. Nc3 {[%emt 0:03:09]} Qe8 {[%emt 0:16:54]} 13. b3 {[%emt 0:08:20]} Qf7 {[%emt 0:05:04]} 14. Ba3 {[%emt 0:03:02]} exd4 {[%emt 0:12:33]} 15. exd4 {[%emt 0:00:25]} Rd8 {[%emt 0:01:55]} 16. Re1 {[%emt 0:13:13]} Qg7 {[%emt 0:01:45]} 17. Qd2 {[%emt 0:11:02]} f4 {[%emt 0:07:04]} 18. Qxf4 {[%emt 0:04:05]} Nf5 {[%emt 0:00:49]} 19. Ne4 {[%emt 0:04:32]} Bxd4 {[%emt 0:00:14]} 20. Rbd1 {[%emt 0:00:21]} c5 {[%emt 0:03:15]} 21. Ng5 {[%emt 0:01:24]} Rf8 {[%emt 0:03:12]} 22. Bd5+ {[%emt 0:01:16]} Kh8 {[%emt 0:01:12]} 23. Nf7+ {[%emt 0:01:21]} Rxf7 {[%emt 0:01:21]} 24. Bxf7 {[%emt 0:00:13]} Qxf7 {[%emt 0:01:25]} 25. g4 {[%emt 0:00:32]} g5 {[%emt 0:06:02]} 26. Qe4 {[%emt 0:11:12]} Bd7 {[%emt 0:01:30]} 27. Qxb7 {[%emt 0:01:18]} Rf8 {[%emt 0:01:23]} 28. gxf5 {[%emt 0:01:00]} Qxf5 {[%emt 0:06:35]} 29. Qg2 {[%emt 0:00:45]} Qxf2+ {[%emt 0:01:41]} 30. Qxf2 {[%emt 0:00:18]} Bxf2+ {[%emt 0:00:10]} 31. Kf1 {[%emt 0:00:37]} Bh3+ {[%emt 0:04:01]} 32. Ke2 {[%emt 0:00:11]} Bg4+ {[%emt 0:00:05]} 33. Kd3 {[%emt 0:01:10]} Bxd1 {[%emt 0:00:29]} 34. Bb2+ {[%emt 0:00:56]} Bd4 {[%emt 0:00:24]} 35. Bxd4+ {[%emt 0:00:08]} cxd4 {[%emt 0:00:04]} 36. Rxd1 {[%emt 0:00:14]} Rf2 {[%emt 0:00:27]} 37. Ke4 {[%emt 0:01:26]} Rxh2 {[%emt 0:00:17]} 38. Kf5 {[%emt 0:00:25]} Rxa2 {[%emt 0:01:54]} 39. Kxg5 {[%emt 0:00:18]} Rb2 {[%emt 0:00:28]} 40. Rxd4 {[%emt 0:00:12]} Rxb3 {[%emt 0:00:04]} 41. Rxd6 {[%emt 0:00:24]} Rc3 {[%emt 0:01:15]} 42. Rd8+ {[%emt 0:00:31]} Kg7 {[%emt 0:00:05]} 43. Rd7+ {[%emt 0:00:03]} Kg8 {[%emt 0:00:48]} 44. Rd8+ {[%emt 0:01:35]} Kf7 {[%emt 0:00:19]} 45. Rd7+ {[%emt 0:00:18]} Ke6 {[%emt 0:00:05]} 46. Rxa7 {[%emt 0:00:09]} Ke5 1/2-1/2